[Event "Early-Titled-Tuesday-Blitz-October-10-2023"]
[Site "Chess.com"]
[Date "2023.10.10"]
[Round "11"]
[White "RETURNOFTHELAGGER"]
[Black "Tonychess32"]
[Result "1-0"]
[WhiteElo "2681"]
[BlackElo "2497"]
[TimeControl "180+1"]
[EndTime "10:04:56 PDT"]
[Termination "RETURNOFTHELAGGER won by resignation"]

1. d4 {[%clk 0:02:59.9]} 1... Nf6 {[%clk 0:02:59.1]} 2. Nf3 {[%clk 0:03:00.2]}
2... e6 {[%clk 0:02:59.5]} 3. g3 {[%clk 0:02:56.6]} 3... d5 {[%clk 0:02:59]} 4.
Bg2 {[%clk 0:02:57.5]} 4... Be7 {[%clk 0:02:58.6]} 5. O-O {[%clk 0:02:58.4]}
5... O-O {[%clk 0:02:58.8]} 6. c4 {[%clk 0:02:59.3]} 6... c6 {[%clk 0:02:57.9]}
7. Nc3 {[%clk 0:02:46.6]} 7... Ne4 {[%clk 0:02:57.6]} 8. Qc2 {[%clk 0:02:40.6]}
8... f5 {[%clk 0:02:56.6]} 9. b3 {[%clk 0:02:36.8]} 9... Nd7 {[%clk 0:02:56.6]}
10. Bb2 {[%clk 0:02:34.5]} 10... Nxc3 {[%clk 0:02:56.7]} 11. Bxc3 {[%clk
0:02:35.4]} 11... Nf6 {[%clk 0:02:56.6]} 12. Nd2 {[%clk 0:02:32]} 12... Bd7
{[%clk 0:02:52.3]} 13. f3 {[%clk 0:02:24.6]} 13... c5 {[%clk 0:02:46.3]} 14. Kh1
{[%clk 0:02:19.9]} 14... cxd4 {[%clk 0:02:46.2]} 15. Bxd4 {[%clk 0:02:19.8]}
15... dxc4 {[%clk 0:02:25.9]} 16. Nxc4 {[%clk 0:02:14.5]} 16... Rc8 {[%clk
0:02:25.1]} 17. Qd3 {[%clk 0:02:12.7]} 17... Bb5 {[%clk 0:02:22]} 18. Rac1
{[%clk 0:02:07.7]} 18... Bxc4 {[%clk 0:02:19.1]} 19. Rxc4 {[%clk 0:02:08.6]}
19... Rxc4 {[%clk 0:02:18.9]} 20. Qxc4 {[%clk 0:02:08.4]} 20... Qd5 {[%clk
0:02:12.3]} 21. Qxd5 {[%clk 0:01:58.2]} 21... Nxd5 {[%clk 0:02:11.6]} 22. e4
{[%clk 0:01:58.8]} 22... fxe4 {[%clk 0:02:11.2]} 23. fxe4 {[%clk 0:01:59.1]}
23... Rxf1+ {[%clk 0:02:11.3]} 24. Bxf1 {[%clk 0:02:00]} 24... Nf6 {[%clk
0:02:11.3]} 25. Bxa7 {[%clk 0:01:34.4]} 25... Nxe4 {[%clk 0:02:11]} 26. Bg2
{[%clk 0:01:35.3]} 26... Nc3 {[%clk 0:02:07]} 27. a4 {[%clk 0:01:35.7]} 27...
Nd5 {[%clk 0:02:02.4]} 28. Kg1 {[%clk 0:01:33.6]} 28... Kf7 {[%clk 0:01:56]} 29.
Kf2 {[%clk 0:01:33.6]} 29... Ke8 {[%clk 0:01:56.4]} 30. Ke2 {[%clk 0:01:29.8]}
30... Kd7 {[%clk 0:01:56.7]} 31. Kd3 {[%clk 0:01:28.2]} 31... Kc6 {[%clk
0:01:36.1]} 32. Bd4 {[%clk 0:01:25.1]} 32... g6 {[%clk 0:01:29.8]} 33. Kc4
{[%clk 0:01:25.7]} 33... Ba3 {[%clk 0:00:58.1]} 34. b4 {[%clk 0:01:24]} 34...
Bc1 {[%clk 0:00:57.3]} 35. b5+ {[%clk 0:01:21.5]} 35... Kd6 {[%clk 0:00:57.6]}
36. Bc5+ {[%clk 0:01:18.7]} 36... Ke5 {[%clk 0:00:55.6]} 37. Bxd5 {[%clk
0:01:19.6]} 37... exd5+ {[%clk 0:00:55.4]} 38. Kd3 {[%clk 0:01:10.9]} 38... Ke6
{[%clk 0:00:39.7]} 39. a5 {[%clk 0:01:08.5]} 39... Kd7 {[%clk 0:00:24.9]} 40.
Kd4 {[%clk 0:01:06.3]} 40... Bd2 {[%clk 0:00:24.6]} 41. a6 {[%clk 0:01:04.8]}
41... bxa6 {[%clk 0:00:24.9]} 42. bxa6 {[%clk 0:01:05.7]} 42... Kc6 {[%clk
0:00:24.6]} 43. a7 {[%clk 0:01:03.9]} 43... Kb7 {[%clk 0:00:24.5]} 44. Kxd5
{[%clk 0:01:04.8]} 44... Bc3 {[%clk 0:00:22.3]} 45. Ke6 {[%clk 0:01:02.9]} 45...
h5 {[%clk 0:00:18.5]} 46. Be3 {[%clk 0:00:58.8]} 46... Ba5 {[%clk 0:00:09.2]}
47. Kf6 {[%clk 0:00:56]} 47... Bd8+ {[%clk 0:00:09.1]} 48. Kxg6 {[%clk 0:00:56]}
48... h4 {[%clk 0:00:10]} 49. g4 {[%clk 0:00:55.4]} 49... h3 {[%clk 0:00:09.8]}
50. g5 {[%clk 0:00:52.2]} 50... Bc7 {[%clk 0:00:09.6]} 51. Bg1 {[%clk 0:00:51]}
51... Bd6 {[%clk 0:00:01.4]} 52. Kh7 {[%clk 0:00:48.6]} 52... Ka8 {[%clk
0:00:01.6]} 53. g6 {[%clk 0:00:48.9]} 53... Be5 {[%clk 0:00:02.1]} 54. g7 {[%clk
0:00:49.5]} 54... Bxg7 {[%clk 0:00:02.4]} 55. Kxg7 {[%clk 0:00:50.4]} 55... Kb7
{[%clk 0:00:03.1]} 56. Kg6 {[%clk 0:00:51.1]} 56... Ka8 {[%clk 0:00:04]} 57. Kg5
{[%clk 0:00:52]} 1-0

[Event "Early-Titled-Tuesday-Blitz-October-10-2023"]
[Site "Chess.com"]
[Date "2023.10.10"]
[Round "11"]
[White "KejJaj"]
[Black "Witaliss"]
[Result "0-1"]
[WhiteElo "2168"]
[BlackElo "2358"]
[TimeControl "180+1"]
[EndTime "10:04:56 PDT"]
[Termination "Witaliss won on time"]

1. d4 {[%clk 0:03:00.9]} 1... Nf6 {[%clk 0:02:58.9]} 2. Bf4 {[%clk 0:03:01.5]}
2... d6 {[%clk 0:02:58.1]} 3. Nc3 {[%clk 0:03:00.7]} 3... Nbd7 {[%clk
0:02:57.5]} 4. Nf3 {[%clk 0:02:59]} 4... g6 {[%clk 0:02:55]} 5. e4 {[%clk
0:02:58.6]} 5... Bg7 {[%clk 0:02:53.1]} 6. Qd2 {[%clk 0:02:59.2]} 6... c6 {[%clk
0:02:50.7]} 7. O-O-O {[%clk 0:02:58.9]} 7... O-O {[%clk 0:02:45.8]} 8. e5 {[%clk
0:02:58.3]} 8... Ne8 {[%clk 0:02:32.4]} 9. Bh6 {[%clk 0:02:48.2]} 9... Qa5
{[%clk 0:02:31.4]} 10. h4 {[%clk 0:02:42.5]} 10... dxe5 {[%clk 0:02:30.5]} 11.
h5 {[%clk 0:02:29.5]} 11... exd4 {[%clk 0:02:29.8]} 12. Nxd4 {[%clk 0:02:12.5]}
12... Ndf6 {[%clk 0:02:15.5]} 13. hxg6 {[%clk 0:02:00.2]} 13... fxg6 {[%clk
0:02:10.4]} 14. Bxg7 {[%clk 0:01:53.8]} 14... Nxg7 {[%clk 0:02:09.7]} 15. Bc4+
{[%clk 0:01:52.4]} 15... Kh8 {[%clk 0:02:07.8]} 16. Qh6 {[%clk 0:01:39.6]} 16...
Bf5 {[%clk 0:01:43.2]} 17. Nf3 {[%clk 0:01:15.3]} 17... Qc5 {[%clk 0:01:34.7]}
18. Ng5 {[%clk 0:01:03.9]} 18... Ngh5 {[%clk 0:01:23.8]} 19. Rxh5 {[%clk
0:00:55]} 19... gxh5 {[%clk 0:01:21.9]} 20. Nf7+ {[%clk 0:00:31.9]} 20... Rxf7
{[%clk 0:01:20.9]} 21. Bxf7 {[%clk 0:00:32.6]} 21... Qxf2 {[%clk 0:01:19.4]} 22.
Rd2 {[%clk 0:00:28.2]} 22... Qf1+ {[%clk 0:01:18.1]} 23. Rd1 {[%clk 0:00:28.8]}
23... Qxg2 {[%clk 0:01:18.2]} 24. Rd2 {[%clk 0:00:28.3]} 24... Qg7 {[%clk
0:01:16.7]} 25. Qxg7+ {[%clk 0:00:22.7]} 25... Kxg7 {[%clk 0:01:16.7]} 26. Bb3
{[%clk 0:00:20.9]} 26... h4 {[%clk 0:01:16]} 27. Rh2 {[%clk 0:00:20.3]} 27... h3
{[%clk 0:01:15.4]} 28. Ne2 {[%clk 0:00:18.1]} 28... Rd8 {[%clk 0:01:10.6]} 29.
Nf4 {[%clk 0:00:17]} 29... Rd4 {[%clk 0:01:00.5]} 30. Ne2 {[%clk 0:00:10.7]}
30... Rh4 {[%clk 0:00:54.9]} 31. Ng3 {[%clk 0:00:10.6]} 31... Bg4 {[%clk
0:00:52.4]} 32. c3 {[%clk 0:00:10]} 32... Nh5 {[%clk 0:00:50.9]} 33. Nxh5+
{[%clk 0:00:08.2]} 33... Rxh5 {[%clk 0:00:50.3]} 34. Bc2 {[%clk 0:00:07.5]}
34... Rg5 {[%clk 0:00:49.1]} 35. Be4 {[%clk 0:00:07]} 35... h5 {[%clk
0:00:46.5]} 36. Kd2 {[%clk 0:00:07.1]} 36... Re5 {[%clk 0:00:46]} 37. Ke3 {[%clk
0:00:07.4]} 37... Bf5 {[%clk 0:00:45.4]} 38. Kf4 {[%clk 0:00:06.9]} 38... Rxe4+
{[%clk 0:00:44]} 39. Kxf5 {[%clk 0:00:07.1]} 39... Re3 {[%clk 0:00:44.3]} 40.
Kg5 {[%clk 0:00:05.3]} 40... h4 {[%clk 0:00:40.4]} 41. Kxh4 {[%clk 0:00:05.1]}
41... Kf6 {[%clk 0:00:40.6]} 42. Kg4 {[%clk 0:00:04.1]} 42... Ke5 {[%clk
0:00:40.7]} 43. Rd2 {[%clk 0:00:03]} 43... Ke4 {[%clk 0:00:38.5]} 44. a4 {[%clk
0:00:02.9]} 44... e5 {[%clk 0:00:37.7]} 45. Kh4 {[%clk 0:00:02.5]} 45... Kf4
{[%clk 0:00:35.1]} 46. Kh5 {[%clk 0:00:02.5]} 46... e4 {[%clk 0:00:34.6]} 47.
Kg6 {[%clk 0:00:02.8]} 47... Rg3+ {[%clk 0:00:33.1]} 48. Kf6 {[%clk 0:00:02.6]}
48... Rg2 {[%clk 0:00:33.3]} 49. Rd4 {[%clk 0:00:01.2]} 49... h2 {[%clk
0:00:33]} 0-1

[Event "Early-Titled-Tuesday-Blitz-October-10-2023"]
[Site "Chess.com"]
[Date "2023.10.10"]
[Round "11"]
[White "Larina_Maria"]
[Black "queen_iryna"]
[Result "1/2-1/2"]
[WhiteElo "2206"]
[BlackElo "2316"]
[TimeControl "180+1"]
[EndTime "10:04:56 PDT"]
[Termination "Game drawn by repetition"]

1. e4 {[%clk 0:01:29.1]} 1... d6 {[%clk 0:03:00.9]} 2. d4 {[%clk 0:01:28.6]}
2... Nf6 {[%clk 0:03:01.4]} 3. Nc3 {[%clk 0:01:28.5]} 3... e5 {[%clk 0:02:53.1]}
4. Nf3 {[%clk 0:01:25.8]} 4... Nbd7 {[%clk 0:02:50.8]} 5. dxe5 {[%clk
0:01:23.9]} 5... dxe5 {[%clk 0:02:49.6]} 6. Bc4 {[%clk 0:01:23.9]} 6... Bb4
{[%clk 0:02:42.6]} 7. O-O {[%clk 0:01:21.1]} 7... O-O {[%clk 0:02:37.2]} 8. Nd5
{[%clk 0:01:20.1]} 8... Bd6 {[%clk 0:02:28.6]} 9. Re1 {[%clk 0:01:16.4]} 9...
Nxd5 {[%clk 0:02:16.2]} 10. Bxd5 {[%clk 0:01:15]} 10... Qe7 {[%clk 0:02:13.8]}
11. Bg5 {[%clk 0:01:14.2]} 11... Nf6 {[%clk 0:02:11.3]} 12. Bc4 {[%clk
0:01:10.7]} 12... Be6 {[%clk 0:02:10.1]} 13. Bxe6 {[%clk 0:01:10.2]} 13... Qxe6
{[%clk 0:02:11]} 14. c3 {[%clk 0:01:03.9]} 14... h6 {[%clk 0:02:10.3]} 15. Bh4
{[%clk 0:00:59.6]} 15... Rad8 {[%clk 0:02:09.2]} 16. Qb3 {[%clk 0:00:58.7]}
16... Qxb3 {[%clk 0:02:06.5]} 17. axb3 {[%clk 0:00:59.6]} 17... g5 {[%clk
0:02:03.6]} 18. Bg3 {[%clk 0:01:00]} 18... Rfe8 {[%clk 0:02:01.9]} 19. Rxa7
{[%clk 0:00:58.9]} 19... b6 {[%clk 0:01:57.3]} 20. Rea1 {[%clk 0:00:55.7]} 20...
Nd7 {[%clk 0:01:51.2]} 21. b4 {[%clk 0:00:51.1]} 21... f6 {[%clk 0:01:46]} 22.
h4 {[%clk 0:00:50.8]} 22... Kf7 {[%clk 0:01:42.9]} 23. Rd1 {[%clk 0:00:48.9]}
23... Ke6 {[%clk 0:01:36.3]} 24. Nd2 {[%clk 0:00:44.4]} 24... Ra8 {[%clk
0:01:33.3]} 25. Rda1 {[%clk 0:00:43.1]} 25... Rxa7 {[%clk 0:01:22.2]} 26. Rxa7
{[%clk 0:00:44]} 26... Nb8 {[%clk 0:01:14]} 27. b5 {[%clk 0:00:39.7]} 27... Nd7
{[%clk 0:01:13.2]} 28. Nc4 {[%clk 0:00:39.3]} 28... Nc5 {[%clk 0:01:11.2]} 29.
f3 {[%clk 0:00:34.3]} 29... Nd3 {[%clk 0:00:51.8]} 30. hxg5 {[%clk 0:00:31.8]}
30... hxg5 {[%clk 0:00:51.6]} 31. b4 {[%clk 0:00:24.4]} 31... Rh8 {[%clk
0:00:47.1]} 32. Rb7 {[%clk 0:00:21]} 32... Ra8 {[%clk 0:00:43.9]} 33. Kh2 {[%clk
0:00:18.5]} 33... Ra2 {[%clk 0:00:42.1]} 34. Ne3 {[%clk 0:00:15.3]} 34... Ra3
{[%clk 0:00:36.4]} 35. Nd5 {[%clk 0:00:14.3]} 35... Rb3 {[%clk 0:00:26.5]} 36.
Nxc7+ {[%clk 0:00:14.1]} 36... Bxc7 {[%clk 0:00:23.4]} 37. Rxc7 {[%clk 0:00:15]}
37... Ra3 {[%clk 0:00:17.8]} 38. Rc6+ {[%clk 0:00:15.5]} 38... Kf7 {[%clk
0:00:17.6]} 39. c4 {[%clk 0:00:15]} 39... Rc3 {[%clk 0:00:16.3]} 40. Rxb6 {[%clk
0:00:13.7]} 40... Rxc4 {[%clk 0:00:15.9]} 41. Rb7+ {[%clk 0:00:13.5]} 41... Ke6
{[%clk 0:00:15.1]} 42. Rb6+ {[%clk 0:00:13.2]} 42... Kf7 {[%clk 0:00:14.1]} 43.
Rb7+ {[%clk 0:00:13.4]} 43... Ke6 {[%clk 0:00:14.1]} 44. Rb6+ {[%clk 0:00:13.6]}
44... Kf7 {[%clk 0:00:14]} 1/2-1/2

[Event "Early-Titled-Tuesday-Blitz-October-10-2023"]
[Site "Chess.com"]
[Date "2023.10.10"]
[Round "11"]
[White "GeorgiosSouleidis"]
[Black "Smiechu"]
[Result "0-1"]
[WhiteElo "2621"]
[BlackElo "2507"]
[TimeControl "180+1"]
[EndTime "10:04:59 PDT"]
[Termination "Smiechu won on time"]

1. e4 {[%clk 0:03:00.2]} 1... c5 {[%clk 0:02:50.9]} 2. Be2 {[%clk 0:02:59.8]}
2... g6 {[%clk 0:02:50.8]} 3. d3 {[%clk 0:02:59.6]} 3... Nc6 {[%clk 0:02:51]} 4.
f4 {[%clk 0:03:00.1]} 4... Bg7 {[%clk 0:02:51.2]} 5. Nf3 {[%clk 0:03:00.7]} 5...
d6 {[%clk 0:02:51.3]} 6. O-O {[%clk 0:03:00.8]} 6... e6 {[%clk 0:02:51.7]} 7. c3
{[%clk 0:03:01.2]} 7... Nge7 {[%clk 0:02:51.7]} 8. Be3 {[%clk 0:03:01.7]} 8...
O-O {[%clk 0:02:51.1]} 9. d4 {[%clk 0:03:02.3]} 9... cxd4 {[%clk 0:02:50.3]} 10.
cxd4 {[%clk 0:03:03.2]} 10... d5 {[%clk 0:02:49.5]} 11. e5 {[%clk 0:03:03.8]}
11... Qb6 {[%clk 0:02:34.9]} 12. Qd2 {[%clk 0:03:03.1]} 12... Bd7 {[%clk
0:02:31.1]} 13. Nc3 {[%clk 0:03:03]} 13... Rac8 {[%clk 0:02:28.3]} 14. Rac1
{[%clk 0:03:02.9]} 14... Na5 {[%clk 0:02:10.7]} 15. b3 {[%clk 0:03:02.6]} 15...
Qb4 {[%clk 0:02:01.1]} 16. g4 {[%clk 0:02:57.7]} 16... Rc7 {[%clk 0:01:57.5]}
17. Nb5 {[%clk 0:01:39.7]} 17... Qxd2 {[%clk 0:01:53.3]} 18. Bxd2 {[%clk
0:01:40.6]} 18... Rxc1 {[%clk 0:01:51.1]} 19. Rxc1 {[%clk 0:01:40.8]} 19... Bxb5
{[%clk 0:01:47.1]} 20. Bxb5 {[%clk 0:01:39.7]} 20... Nac6 {[%clk 0:01:47.1]} 21.
Kf2 {[%clk 0:01:31.8]} 21... f6 {[%clk 0:01:45]} 22. Ke2 {[%clk 0:01:26.5]}
22... fxe5 {[%clk 0:01:44.3]} 23. fxe5 {[%clk 0:01:26.4]} 23... Rxf3 {[%clk
0:01:25]} 24. Bxc6 {[%clk 0:01:26.5]} 24... Rh3 {[%clk 0:01:23.5]} 25. Bxb7
{[%clk 0:01:16.4]} 25... Rxh2+ {[%clk 0:01:23.7]} 26. Kd3 {[%clk 0:01:15.3]}
26... h5 {[%clk 0:01:22.5]} 27. Rc7 {[%clk 0:01:04.6]} 27... Bf8 {[%clk
0:01:20.7]} 28. Bg5 {[%clk 0:00:57.9]} 28... Kf7 {[%clk 0:01:19.8]} 29. gxh5
{[%clk 0:00:53]} 29... gxh5 {[%clk 0:01:20]} 30. a4 {[%clk 0:00:33.1]} 30... h4
{[%clk 0:01:16.9]} 31. Ke3 {[%clk 0:00:32]} 31... h3 {[%clk 0:01:11.5]} 32. Kf3
{[%clk 0:00:29.6]} 32... Rg2 {[%clk 0:01:10]} 33. Be3 {[%clk 0:00:22.5]} 33...
Rb2 {[%clk 0:01:06.1]} 34. Bf4 {[%clk 0:00:08.9]} 34... h2 {[%clk 0:01:00]} 35.
Rc1 {[%clk 0:00:06.8]} 35... Rxb3+ {[%clk 0:01:00.2]} 36. Kg4 {[%clk 0:00:06.6]}
36... Rxb7 {[%clk 0:00:59.4]} 37. Bxh2 {[%clk 0:00:06.4]} 37... Rb4 {[%clk
0:00:57.3]} 38. Bg1 {[%clk 0:00:06.6]} 38... Rxa4 {[%clk 0:00:54.5]} 39. Rc7
{[%clk 0:00:06.8]} 39... a5 {[%clk 0:00:51.5]} 40. Be3 {[%clk 0:00:05.1]} 40...
Rc4 {[%clk 0:00:51]} 41. Ra7 {[%clk 0:00:05.2]} 41... a4 {[%clk 0:00:51.3]} 42.
Kf3 {[%clk 0:00:03.7]} 42... Rc3 {[%clk 0:00:50.3]} 43. Ke2 {[%clk 0:00:03.9]}
43... a3 {[%clk 0:00:49.1]} 44. Kd2 {[%clk 0:00:03.9]} 44... Rb3 {[%clk
0:00:49.5]} 45. Bg5 {[%clk 0:00:04.2]} 45... Rg3 {[%clk 0:00:47.7]} 46. Bf4
{[%clk 0:00:03.4]} 46... Rg4 {[%clk 0:00:44.7]} 47. Be3 {[%clk 0:00:03.7]} 47...
a2 {[%clk 0:00:42.1]} 48. Kd3 {[%clk 0:00:02.2]} 48... Rg2 {[%clk 0:00:42]} 49.
Bd2 {[%clk 0:00:02.6]} 49... Kg6 {[%clk 0:00:36]} 50. Rxa2 {[%clk 0:00:02.3]}
50... Bh6 {[%clk 0:00:33.7]} 0-1

[Event "Early-Titled-Tuesday-Blitz-October-10-2023"]
[Site "Chess.com"]
[Date "2023.10.10"]
[Round "11"]
[White "elprimo2012mortis"]
[Black "remi04"]
[Result "1/2-1/2"]
[WhiteElo "2714"]
[BlackElo "2864"]
[TimeControl "180+1"]
[EndTime "10:05:00 PDT"]
[Termination "Game drawn by repetition"]

1. e4 {[%clk 0:03:00.9]} 1... c5 {[%clk 0:03:00.3]} 2. Nc3 {[%clk 0:03:00.6]}
2... a6 {[%clk 0:03:00.2]} 3. g3 {[%clk 0:03:00.4]} 3... b5 {[%clk 0:03:00.2]}
4. Bg2 {[%clk 0:03:01]} 4... Bb7 {[%clk 0:03:00.8]} 5. d3 {[%clk 0:03:01.7]}
5... e6 {[%clk 0:03:01]} 6. Nh3 {[%clk 0:03:02.2]} 6... Nf6 {[%clk 0:02:53.6]}
7. O-O {[%clk 0:03:02.3]} 7... d5 {[%clk 0:02:49.8]} 8. exd5 {[%clk 0:02:52.7]}
8... b4 {[%clk 0:02:50]} 9. Ne4 {[%clk 0:02:23.1]} 9... Nxd5 {[%clk 0:02:48.8]}
10. Nf4 {[%clk 0:02:22.8]} 10... Be7 {[%clk 0:02:46.1]} 11. h4 {[%clk 0:02:11]}
11... O-O {[%clk 0:02:44.7]} 12. Nxd5 {[%clk 0:02:00.1]} 12... Bxd5 {[%clk
0:02:41.7]} 13. Qe2 {[%clk 0:01:58.8]} 13... Nc6 {[%clk 0:02:36.5]} 14. c3
{[%clk 0:01:53.5]} 14... Ne5 {[%clk 0:02:21]} 15. Rd1 {[%clk 0:01:27.6]} 15...
Qc8 {[%clk 0:01:58.1]} 16. Bf4 {[%clk 0:01:04.2]} 16... Nd7 {[%clk 0:01:52.4]}
17. Nd6 {[%clk 0:00:38.2]} 17... Bxd6 {[%clk 0:01:51.4]} 18. Bxd6 {[%clk
0:00:39.1]} 18... Bxg2 {[%clk 0:01:50.1]} 19. Bxf8 {[%clk 0:00:34.1]} 19... Qc6
{[%clk 0:01:50]} 20. cxb4 {[%clk 0:00:18.6]} 20... Rxf8 {[%clk 0:01:40]} 21.
Rdc1 {[%clk 0:00:18.8]} 21... Bh1 {[%clk 0:01:33.7]} 22. Qf1 {[%clk 0:00:18.2]}
22... Bf3 {[%clk 0:01:17]} 23. bxc5 {[%clk 0:00:17.6]} 23... Ne5 {[%clk
0:01:16]} 24. d4 {[%clk 0:00:17.1]} 24... Ng4 {[%clk 0:01:14.7]} 25. b4 {[%clk
0:00:17]} 25... Rd8 {[%clk 0:01:10.5]} 26. a4 {[%clk 0:00:16.5]} 26... Qe4
{[%clk 0:00:59.1]} 27. b5 {[%clk 0:00:15.6]} 27... Be2 {[%clk 0:00:39.9]} 28.
Qe1 {[%clk 0:00:11.1]} 28... Rxd4 {[%clk 0:00:38.2]} 29. Ra2 {[%clk 0:00:09]}
29... Ne5 {[%clk 0:00:21.7]} 30. Rxe2 {[%clk 0:00:07.5]} 30... Nf3+ {[%clk
0:00:20.8]} 31. Kf1 {[%clk 0:00:06.7]} 31... Nh2+ {[%clk 0:00:18.1]} 32. Kg1
{[%clk 0:00:07.1]} 32... Nf3+ {[%clk 0:00:19]} 33. Kf1 {[%clk 0:00:07.3]} 33...
Qd5 {[%clk 0:00:14.5]} 34. Qc3 {[%clk 0:00:04.7]} 34... Nh2+ {[%clk 0:00:12.7]}
35. Kg1 {[%clk 0:00:05.3]} 35... Nf3+ {[%clk 0:00:13.1]} 36. Kf1 {[%clk
0:00:05.9]} 36... Nh2+ {[%clk 0:00:06.2]} 37. Kg1 {[%clk 0:00:05.6]} 37... Nf3+
{[%clk 0:00:06.6]} 38. Kf1 {[%clk 0:00:06]} 1/2-1/2

[Event "Early-Titled-Tuesday-Blitz-October-10-2023"]
[Site "Chess.com"]
[Date "2023.10.10"]
[Round "11"]
[White "CSB7"]
[Black "secretsuperstar7"]
[Result "1-0"]
[WhiteElo "2737"]
[BlackElo "2455"]
[TimeControl "180+1"]
[EndTime "10:05:02 PDT"]
[Termination "CSB7 won by resignation"]

1. Nf3 {[%clk 0:03:00.9]} 1... d5 {[%clk 0:02:59.5]} 2. e3 {[%clk 0:03:00]} 2...
Nf6 {[%clk 0:02:59.1]} 3. c4 {[%clk 0:03:00.2]} 3... e6 {[%clk 0:02:59.1]} 4.
Nc3 {[%clk 0:03:00.2]} 4... Be7 {[%clk 0:02:58.9]} 5. b3 {[%clk 0:03:00.2]} 5...
O-O {[%clk 0:02:59]} 6. Bb2 {[%clk 0:03:00.2]} 6... b6 {[%clk 0:02:59.2]} 7.
cxd5 {[%clk 0:02:57.6]} 7... exd5 {[%clk 0:02:58.9]} 8. d4 {[%clk 0:02:57.3]}
8... c5 {[%clk 0:02:59]} 9. Be2 {[%clk 0:02:52.2]} 9... Be6 {[%clk 0:02:51.2]}
10. O-O {[%clk 0:02:49.5]} 10... Nc6 {[%clk 0:02:48.2]} 11. Rc1 {[%clk
0:02:49.4]} 11... h6 {[%clk 0:02:46.8]} 12. dxc5 {[%clk 0:02:30.2]} 12... bxc5
{[%clk 0:02:45.4]} 13. Na4 {[%clk 0:02:29.5]} 13... Ne4 {[%clk 0:02:40.1]} 14.
Nd2 {[%clk 0:02:27.9]} 14... Qa5 {[%clk 0:02:22.4]} 15. Nxe4 {[%clk 0:02:23.6]}
15... dxe4 {[%clk 0:02:23.3]} 16. Bc3 {[%clk 0:01:40.6]} 16... Nb4 {[%clk
0:02:21.7]} 17. a3 {[%clk 0:01:32]} 17... Rad8 {[%clk 0:02:06.4]} 18. axb4
{[%clk 0:01:31.7]} 18... cxb4 {[%clk 0:01:45.6]} 19. Bd4 {[%clk 0:01:31.6]}
19... Qg5 {[%clk 0:01:41.2]} 20. Re1 {[%clk 0:01:11.4]} 20... Kh8 {[%clk
0:01:37.8]} 21. Qc2 {[%clk 0:01:04.2]} 21... f5 {[%clk 0:01:36.2]} 22. Qb2
{[%clk 0:00:53.7]} 22... f4 {[%clk 0:01:34.5]} 23. exf4 {[%clk 0:00:54.6]} 23...
Qg6 {[%clk 0:01:22.5]} 24. Be5 {[%clk 0:00:43.4]} 24... Bh3 {[%clk 0:01:12.4]}
25. Bf1 {[%clk 0:00:40.6]} 25... e3 {[%clk 0:00:49]} 26. Rxe3 {[%clk 0:00:37.2]}
26... Bg4 {[%clk 0:00:39.3]} 27. Rg3 {[%clk 0:00:33.7]} 27... Bh4 {[%clk
0:00:38.5]} 28. Bxg7+ {[%clk 0:00:30.6]} 28... Kg8 {[%clk 0:00:37.9]} 29. Bxf8
{[%clk 0:00:28.9]} 29... Bxg3 {[%clk 0:00:37.5]} 30. hxg3 {[%clk 0:00:26]} 30...
Rxf8 {[%clk 0:00:35.7]} 31. Nc5 {[%clk 0:00:24.8]} 31... h5 {[%clk 0:00:34.6]}
32. Nd3 {[%clk 0:00:24]} 32... Bf5 {[%clk 0:00:31.3]} 33. Ne5 {[%clk 0:00:23.4]}
33... Qg7 {[%clk 0:00:31.6]} 34. Qd4 {[%clk 0:00:21.2]} 34... h4 {[%clk
0:00:30.7]} 35. gxh4 {[%clk 0:00:20.5]} 35... Qf6 {[%clk 0:00:19.6]} 36. Rc7
{[%clk 0:00:15.6]} 36... Kh8 {[%clk 0:00:17.1]} 37. g3 {[%clk 0:00:08.6]} 37...
Bh7 {[%clk 0:00:14.3]} 38. Nf3 {[%clk 0:00:07.5]} 38... Qxd4 {[%clk 0:00:12.1]}
39. Nxd4 {[%clk 0:00:08.4]} 39... Rd8 {[%clk 0:00:12.2]} 40. Ne6 {[%clk
0:00:08.4]} 40... Rd1 {[%clk 0:00:12]} 41. Rc8+ {[%clk 0:00:08.4]} 41... Bg8
{[%clk 0:00:11.4]} 42. Kg2 {[%clk 0:00:08]} 42... Kh7 {[%clk 0:00:11.5]} 43. Bc4
{[%clk 0:00:07.1]} 43... Bf7 {[%clk 0:00:08.2]} 44. Ng5+ {[%clk 0:00:07.1]} 1-0